[Event "Early-Titled-Tuesday-Blitz-February-27-2024"]
[Site "Chess.com"]
[Date "2024.02.27"]
[Round "9"]
[White "BeardedNM"]
[Black "FernandoArauzAlonso"]
[Result "0-1"]
[WhiteElo "2240"]
[BlackElo "2616"]
[TimeControl "180+1"]
[EndTime "9:45:08 PST"]
[Termination "FernandoArauzAlonso won by resignation"]

1. e4 {[%clk 0:02:56.9]} 1... g6 {[%clk 0:02:55.5]} 2. d4 {[%clk 0:02:56.5]}
2... Bh6 {[%clk 0:02:56]} 3. Bxh6 {[%clk 0:02:53.4]} 3... Nxh6 {[%clk
0:02:56.9]} 4. Nc3 {[%clk 0:02:53.5]} 4... f6 {[%clk 0:02:52.3]} 5. h4 {[%clk
0:02:52.3]} 5... Nf7 {[%clk 0:02:52.8]} 6. f4 {[%clk 0:02:41.4]} 6... d6 {[%clk
0:02:52]} 7. Nf3 {[%clk 0:02:41]} 7... Bg4 {[%clk 0:02:51.5]} 8. Be2 {[%clk
0:02:39.6]} 8... Nd7 {[%clk 0:02:48.3]} 9. Ng1 {[%clk 0:02:23.1]} 9... Bxe2
{[%clk 0:02:45.3]} 10. Ngxe2 {[%clk 0:02:24]} 10... e5 {[%clk 0:02:45.7]} 11. h5
{[%clk 0:02:21.6]} 11... Qe7 {[%clk 0:02:43.8]} 12. Qd3 {[%clk 0:02:06.7]} 12...
O-O-O {[%clk 0:02:37.9]} 13. O-O-O {[%clk 0:02:01]} 13... Kb8 {[%clk 0:02:30.3]}
14. Rh3 {[%clk 0:01:42.6]} 14... g5 {[%clk 0:02:18.5]} 15. f5 {[%clk 0:01:20.6]}
15... exd4 {[%clk 0:02:13.2]} 16. Nd5 {[%clk 0:01:09.4]} 16... Qe5 {[%clk
0:02:06.5]} 17. Nxd4 {[%clk 0:01:05.2]} 17... Nc5 {[%clk 0:01:57.2]} 18. Qb5
{[%clk 0:00:55.4]} 18... Kc8 {[%clk 0:01:14]} 19. Ra3 {[%clk 0:00:45.7]} 19...
a6 {[%clk 0:01:12.9]} 20. Qc4 {[%clk 0:00:20.5]} 20... Qxe4 {[%clk 0:00:57.7]}
21. Nc3 {[%clk 0:00:10.1]} 21... Ne5 {[%clk 0:00:49]} 22. Qb4 {[%clk 0:00:06.3]}
22... Qf4+ {[%clk 0:00:32.3]} 23. Kb1 {[%clk 0:00:06]} 23... Ng4 {[%clk
0:00:14.4]} 24. Nd5 {[%clk 0:00:06.2]} 24... Qe4 {[%clk 0:00:10.1]} 25. Nc3
{[%clk 0:00:05.4]} 25... Qxg2 {[%clk 0:00:09.5]} 26. Ne6 {[%clk 0:00:04.5]}
26... Nxe6 {[%clk 0:00:09]} 27. fxe6 {[%clk 0:00:05.4]} 27... Ne5 {[%clk
0:00:08]} 28. Nd5 {[%clk 0:00:05.6]} 28... Nc6 {[%clk 0:00:04.7]} 29. Rc3 {[%clk
0:00:04.8]} 29... Rhe8 {[%clk 0:00:03.5]} 30. Rxc6 {[%clk 0:00:04.4]} 30... bxc6
{[%clk 0:00:04.4]} 31. Nb6+ {[%clk 0:00:04]} 31... cxb6 {[%clk 0:00:04.4]} 32.
Qxb6 {[%clk 0:00:04.7]} 32... c5 {[%clk 0:00:05.1]} 33. Qxa6+ {[%clk 0:00:04.9]}
33... Qb7 {[%clk 0:00:05.2]} 34. Qa4 {[%clk 0:00:05.6]} 34... Rxe6 {[%clk
0:00:04.9]} 35. Qc4 {[%clk 0:00:05.9]} 35... Rde8 {[%clk 0:00:05]} 36. a4 {[%clk
0:00:06.5]} 36... Re1 {[%clk 0:00:05.3]} 37. Rxe1 {[%clk 0:00:07]} 37... Rxe1+
{[%clk 0:00:05.9]} 38. Ka2 {[%clk 0:00:07.9]} 38... Re8 {[%clk 0:00:06.2]} 39.
Qf7 {[%clk 0:00:08.1]} 39... Qxf7+ {[%clk 0:00:05.5]} 0-1

[Event "Early-Titled-Tuesday-Blitz-February-27-2024"]
[Site "Chess.com"]
[Date "2024.02.27"]
[Round "9"]
[White "SARGISMV"]
[Black "Abund"]
[Result "1-0"]
[WhiteElo "2507"]
[BlackElo "2758"]
[TimeControl "180+1"]
[EndTime "9:45:09 PST"]
[Termination "SARGISMV won by checkmate"]

1. d4 {[%clk 0:03:00.9]} 1... d5 {[%clk 0:03:00]} 2. c4 {[%clk 0:03:00.1]} 2...
e6 {[%clk 0:03:00.5]} 3. Nc3 {[%clk 0:02:58.6]} 3... Nf6 {[%clk 0:03:00.6]} 4.
Bg5 {[%clk 0:02:58]} 4... Be7 {[%clk 0:03:00.1]} 5. e3 {[%clk 0:02:57.4]} 5...
h6 {[%clk 0:02:59.9]} 6. Bxf6 {[%clk 0:02:57.7]} 6... Bxf6 {[%clk 0:03:00.8]} 7.
Nf3 {[%clk 0:02:58.1]} 7... dxc4 {[%clk 0:03:01]} 8. Bxc4 {[%clk 0:02:56.9]}
8... c5 {[%clk 0:03:01.7]} 9. dxc5 {[%clk 0:02:50.2]} 9... Bxc3+ {[%clk
0:02:36.4]} 10. bxc3 {[%clk 0:02:49]} 10... Qa5 {[%clk 0:02:37.1]} 11. O-O
{[%clk 0:02:47.1]} 11... O-O {[%clk 0:02:29.2]} 12. Qd4 {[%clk 0:02:21.8]} 12...
Nc6 {[%clk 0:02:16.8]} 13. Qe4 {[%clk 0:02:21.1]} 13... Qxc5 {[%clk 0:02:13.2]}
14. Bd3 {[%clk 0:02:14]} 14... f5 {[%clk 0:02:06.6]} 15. Qc4 {[%clk 0:02:08.2]}
15... Qe7 {[%clk 0:01:58.6]} 16. e4 {[%clk 0:02:02.2]} 16... Na5 {[%clk
0:01:27.8]} 17. Qb4 {[%clk 0:01:53.3]} 17... Qc7 {[%clk 0:01:15.9]} 18. Rfe1
{[%clk 0:01:33.3]} 18... Bd7 {[%clk 0:00:35.7]} 19. exf5 {[%clk 0:01:10.5]}
19... exf5 {[%clk 0:00:36.6]} 20. Ne5 {[%clk 0:01:07.5]} 20... Be6 {[%clk
0:00:31]} 21. Ng6 {[%clk 0:00:52.6]} 21... Rf6 {[%clk 0:00:23.7]} 22. Nf4 {[%clk
0:00:25.1]} 22... Bf7 {[%clk 0:00:20.7]} 23. Re7 {[%clk 0:00:24.4]} 23... Qd8
{[%clk 0:00:19.3]} 24. Bb5 {[%clk 0:00:18.7]} 24... a6 {[%clk 0:00:11.3]} 25.
Rd7 {[%clk 0:00:17.9]} 25... Qb6 {[%clk 0:00:08.8]} 26. Bd3 {[%clk 0:00:15.4]}
26... Qxb4 {[%clk 0:00:03.8]} 27. cxb4 {[%clk 0:00:16.3]} 27... Nc6 {[%clk
0:00:04.5]} 28. Rxb7 {[%clk 0:00:16.2]} 28... Ne5 {[%clk 0:00:04.4]} 29. Bf1
{[%clk 0:00:15.7]} 29... g5 {[%clk 0:00:04.6]} 30. Nd3 {[%clk 0:00:14.7]} 30...
Nxd3 {[%clk 0:00:04.5]} 31. Bxd3 {[%clk 0:00:15.6]} 31... Rd8 {[%clk 0:00:05.3]}
32. Bf1 {[%clk 0:00:14.4]} 32... Rd2 {[%clk 0:00:04.9]} 33. a3 {[%clk 0:00:14]}
33... Rc6 {[%clk 0:00:04.3]} 34. Re1 {[%clk 0:00:11.8]} 34... Rcc2 {[%clk
0:00:03.5]} 35. Ree7 {[%clk 0:00:11.8]} 35... Bc4 {[%clk 0:00:03.3]} 36. Re8#
{[%clk 0:00:07]} 1-0

[Event "Early-Titled-Tuesday-Blitz-February-27-2024"]
[Site "Chess.com"]
[Date "2024.02.27"]
[Round "9"]
[White "Chessbard1972"]
[Black "deribas12345"]
[Result "0-1"]
[WhiteElo "2455"]
[BlackElo "2582"]
[TimeControl "180+1"]
[EndTime "9:45:09 PST"]
[Termination "deribas12345 won on time"]

1. d4 {[%clk 0:03:00.9]} 1... Nf6 {[%clk 0:02:58.2]} 2. Nf3 {[%clk 0:02:58.9]}
2... c5 {[%clk 0:02:57.9]} 3. d5 {[%clk 0:02:57.2]} 3... b5 {[%clk 0:02:58.1]}
4. c4 {[%clk 0:02:56.2]} 4... Bb7 {[%clk 0:02:55.1]} 5. a4 {[%clk 0:02:55.1]}
5... Qa5+ {[%clk 0:02:54.3]} 6. Bd2 {[%clk 0:02:50.9]} 6... b4 {[%clk
0:02:53.9]} 7. Bf4 {[%clk 0:02:39]} 7... d6 {[%clk 0:02:49.7]} 8. Nbd2 {[%clk
0:02:37.8]} 8... g6 {[%clk 0:02:49.7]} 9. e4 {[%clk 0:02:36.9]} 9... Bg7 {[%clk
0:02:49.8]} 10. h3 {[%clk 0:02:35.3]} 10... Nh5 {[%clk 0:02:49.3]} 11. Bh2
{[%clk 0:02:33.5]} 11... Bxb2 {[%clk 0:02:47.5]} 12. Be2 {[%clk 0:02:32.4]}
12... O-O {[%clk 0:02:40]} 13. O-O {[%clk 0:02:20.1]} 13... Nd7 {[%clk
0:02:38.1]} 14. Rb1 {[%clk 0:02:14.4]} 14... Bg7 {[%clk 0:02:31.3]} 15. Re1
{[%clk 0:01:59.7]} 15... Nb6 {[%clk 0:02:17.4]} 16. Nb3 {[%clk 0:01:51.4]} 16...
Qxa4 {[%clk 0:02:15.5]} 17. e5 {[%clk 0:01:48.8]} 17... Rfd8 {[%clk 0:01:04.5]}
18. Ng5 {[%clk 0:01:42.4]} 18... Rac8 {[%clk 0:00:23.4]} 19. Bxh5 {[%clk
0:01:39.5]} 19... Nxc4 {[%clk 0:00:23.5]} 20. Bg4 {[%clk 0:01:34.7]} 20... Nxe5
{[%clk 0:00:18.2]} 21. Bxc8 {[%clk 0:01:32.5]} 21... Rxc8 {[%clk 0:00:18.4]} 22.
f4 {[%clk 0:01:28.1]} 22... Nc4 {[%clk 0:00:13]} 23. Rxe7 {[%clk 0:01:26.8]}
23... Na3 {[%clk 0:00:10.6]} 24. Rxb7 {[%clk 0:01:13]} 24... Nxb1 {[%clk
0:00:10.2]} 25. Qxb1 {[%clk 0:01:06.4]} 25... c4 {[%clk 0:00:10.7]} 26. Nxf7
{[%clk 0:00:40.7]} 26... Qxb3 {[%clk 0:00:07.8]} 27. Qe1 {[%clk 0:00:37]} 27...
Bd4+ {[%clk 0:00:04.6]} 28. Kh1 {[%clk 0:00:35.6]} 28... Qe3 {[%clk 0:00:04]}
29. Qxe3 {[%clk 0:00:28.5]} 29... Bxe3 {[%clk 0:00:04.3]} 30. Nxd6 {[%clk
0:00:29.1]} 30... c3 {[%clk 0:00:04.8]} 31. Nxc8 {[%clk 0:00:20]} 31... c2
{[%clk 0:00:05.1]} 32. Rc7 {[%clk 0:00:19.9]} 32... b3 {[%clk 0:00:04.6]} 33.
Ne7+ {[%clk 0:00:10.8]} 33... Kf8 {[%clk 0:00:04.5]} 34. d6 {[%clk 0:00:04.4]}
34... b2 {[%clk 0:00:04.8]} 0-1

[Event "Early-Titled-Tuesday-Blitz-February-27-2024"]
[Site "Chess.com"]
[Date "2024.02.27"]
[Round "9"]
[White "Schattman"]
[Black "JonasEilenberg"]
[Result "0-1"]
[WhiteElo "2434"]
[BlackElo "2550"]
[TimeControl "180+1"]
[EndTime "9:45:09 PST"]
[Termination "JonasEilenberg won on time"]

1. f4 {[%clk 0:03:00.9]} 1... d5 {[%clk 0:02:56.8]} 2. Nf3 {[%clk 0:02:59.9]}
2... g6 {[%clk 0:02:57.7]} 3. g3 {[%clk 0:02:59.5]} 3... Bg7 {[%clk 0:02:58.6]}
4. Bg2 {[%clk 0:02:59.9]} 4... Nf6 {[%clk 0:02:56.6]} 5. O-O {[%clk 0:02:59.8]}
5... O-O {[%clk 0:02:57.5]} 6. d3 {[%clk 0:03:00.2]} 6... c5 {[%clk 0:02:57.6]}
7. Ne5 {[%clk 0:03:00.2]} 7... Nc6 {[%clk 0:02:51.8]} 8. Nxc6 {[%clk 0:02:59.9]}
8... bxc6 {[%clk 0:02:52.7]} 9. c4 {[%clk 0:03:00]} 9... Rb8 {[%clk 0:02:52.1]}
10. Nc3 {[%clk 0:02:56.5]} 10... Be6 {[%clk 0:02:33.7]} 11. cxd5 {[%clk
0:02:34.8]} 11... cxd5 {[%clk 0:02:34.6]} 12. e4 {[%clk 0:02:34.7]} 12... dxe4
{[%clk 0:02:30.6]} 13. dxe4 {[%clk 0:02:31.4]} 13... Bc4 {[%clk 0:02:30.4]} 14.
Re1 {[%clk 0:02:26.6]} 14... e5 {[%clk 0:02:21.8]} 15. Be3 {[%clk 0:02:16.2]}
15... Rxb2 {[%clk 0:02:12.8]} 16. Na4 {[%clk 0:01:43.5]} 16... Rxg2+ {[%clk
0:01:48.8]} 17. Kxg2 {[%clk 0:01:39.7]} 17... Qa8 {[%clk 0:01:49.5]} 18. Nxc5
{[%clk 0:01:33.1]} 18... Nxe4 {[%clk 0:01:48]} 19. Nxe4 {[%clk 0:01:25.6]} 19...
Qxe4+ {[%clk 0:01:48.9]} 20. Qf3 {[%clk 0:01:19.2]} 20... Qc2+ {[%clk
0:01:38.9]} 21. Kg1 {[%clk 0:01:10.9]} 21... exf4 {[%clk 0:01:28]} 22. Rac1
{[%clk 0:01:02.8]} 22... Qxa2 {[%clk 0:01:24.6]} 23. Qxf4 {[%clk 0:00:53.8]}
23... Bd5 {[%clk 0:01:24.3]} 24. Qf2 {[%clk 0:00:53.8]} 24... Qa4 {[%clk
0:01:17.9]} 25. Rcd1 {[%clk 0:00:31.5]} 25... Qe4 {[%clk 0:01:14.9]} 26. Rxd5
{[%clk 0:00:24.7]} 26... Qxd5 {[%clk 0:01:15.8]} 27. Bxa7 {[%clk 0:00:24.4]}
27... Ra8 {[%clk 0:01:12.8]} 28. Be3 {[%clk 0:00:03.7]} 28... h5 {[%clk
0:01:12.7]} 29. h3 {[%clk 0:00:03.1]} 29... Ra2 {[%clk 0:01:11]} 30. Re2 {[%clk
0:00:02.6]} 30... Qd1+ {[%clk 0:00:40.5]} 31. Re1 {[%clk 0:00:02.7]} 31... Qd5
{[%clk 0:00:40.9]} 32. Re2 {[%clk 0:00:02.8]} 32... Ra1+ {[%clk 0:00:38.1]} 33.
Re1 {[%clk 0:00:03.1]} 33... Ra6 {[%clk 0:00:37.3]} 34. h4 {[%clk 0:00:03.4]}
34... Re6 {[%clk 0:00:34.9]} 35. Kh2 {[%clk 0:00:03]} 35... Be5 {[%clk
0:00:32.8]} 36. Bf4 {[%clk 0:00:03.1]} 36... Bxf4 {[%clk 0:00:31.2]} 37. gxf4
{[%clk 0:00:02.5]} 37... Ra6 {[%clk 0:00:25.7]} 38. Re2 {[%clk 0:00:02.8]} 38...
Ra3 {[%clk 0:00:22.2]} 39. Rd2 {[%clk 0:00:02.9]} 39... Qf5 {[%clk 0:00:20.4]}
40. Rd8+ {[%clk 0:00:02.7]} 40... Kh7 {[%clk 0:00:20.1]} 41. Rd2 {[%clk
0:00:02.1]} 41... Qh3+ {[%clk 0:00:19.7]} 42. Kg1 {[%clk 0:00:02.2]} 42... Ra1+
{[%clk 0:00:20.4]} 0-1

[Event "Early-Titled-Tuesday-Blitz-February-27-2024"]
[Site "Chess.com"]
[Date "2024.02.27"]
[Round "9"]
[White "Hikaru"]
[Black "blitzking1729"]
[Result "1-0"]
[WhiteElo "3242"]
[BlackElo "2754"]
[TimeControl "180+1"]
[EndTime "9:45:10 PST"]
[Termination "Hikaru won by resignation"]

1. h3 {[%clk 0:03:00.9]} 1... d5 {[%clk 0:02:56.7]} 2. d4 {[%clk 0:02:58.2]}
2... Nf6 {[%clk 0:02:54.9]} 3. Bf4 {[%clk 0:02:57.9]} 3... c5 {[%clk 0:02:50.7]}
4. e3 {[%clk 0:02:54.8]} 4... Nc6 {[%clk 0:02:50.3]} 5. Nc3 {[%clk 0:02:54.7]}
5... cxd4 {[%clk 0:02:48.2]} 6. exd4 {[%clk 0:02:54.7]} 6... a6 {[%clk
0:02:48.8]} 7. Qd2 {[%clk 0:02:51.9]} 7... e6 {[%clk 0:02:39.3]} 8. a3 {[%clk
0:02:47]} 8... b5 {[%clk 0:02:37.4]} 9. Nf3 {[%clk 0:02:46.7]} 9... Bd6 {[%clk
0:02:36.1]} 10. Bd3 {[%clk 0:02:38.9]} 10... Bb7 {[%clk 0:02:31.1]} 11. O-O
{[%clk 0:02:35]} 11... O-O {[%clk 0:02:31.5]} 12. Rfe1 {[%clk 0:02:34.3]} 12...
Rc8 {[%clk 0:02:28.5]} 13. Ne2 {[%clk 0:02:30.6]} 13... Ne4 {[%clk 0:02:26.1]}
14. Qe3 {[%clk 0:02:30.7]} 14... f5 {[%clk 0:02:25]} 15. Bxd6 {[%clk 0:02:26.1]}
15... Qxd6 {[%clk 0:02:23.3]} 16. c3 {[%clk 0:02:20]} 16... f4 {[%clk
0:02:11.7]} 17. Qc1 {[%clk 0:02:19.2]} 17... Ne7 {[%clk 0:02:11.3]} 18. Ne5
{[%clk 0:02:16]} 18... Ng6 {[%clk 0:01:02.2]} 19. Nxg6 {[%clk 0:01:47.9]} 19...
hxg6 {[%clk 0:01:03.1]} 20. f3 {[%clk 0:01:48.7]} 20... g5 {[%clk 0:01:02.7]}
21. Qc2 {[%clk 0:01:43.3]} 21... Nf6 {[%clk 0:00:57.4]} 22. Nc1 {[%clk
0:01:43.2]} 22... Nd7 {[%clk 0:00:54.4]} 23. Nb3 {[%clk 0:01:21.5]} 23... e5
{[%clk 0:00:52]} 24. dxe5 {[%clk 0:01:21.9]} 24... Nxe5 {[%clk 0:00:51.4]} 25.
Nd4 {[%clk 0:01:18.5]} 25... g6 {[%clk 0:00:42.1]} 26. Re2 {[%clk 0:01:07.9]}
26... Rce8 {[%clk 0:00:37.2]} 27. Rae1 {[%clk 0:01:07.7]} 27... Kf7 {[%clk
0:00:30.9]} 28. Qd1 {[%clk 0:01:02.6]} 28... Bc8 {[%clk 0:00:28.5]} 29. Bb1
{[%clk 0:01:00.3]} 29... Bd7 {[%clk 0:00:27.8]} 30. Ba2 {[%clk 0:01:00.3]} 30...
Kg7 {[%clk 0:00:26.9]} 31. Bxd5 {[%clk 0:00:53.3]} 31... Qf6 {[%clk 0:00:12.6]}
32. Bb3 {[%clk 0:00:50.9]} 32... Rh8 {[%clk 0:00:10.5]} 33. Ne6+ {[%clk
0:00:19.2]} 33... Bxe6 {[%clk 0:00:08.3]} 34. Rxe5 {[%clk 0:00:19.8]} 34... Bxb3
{[%clk 0:00:06.3]} 35. Qd7+ {[%clk 0:00:19.8]} 35... Qf7 {[%clk 0:00:05.6]} 36.
Re7 {[%clk 0:00:20.1]} 36... Rxe7 {[%clk 0:00:03.9]} 37. Rxe7 {[%clk 0:00:21]}
37... Rf8 {[%clk 0:00:03.9]} 38. Qd4+ {[%clk 0:00:18.6]} 38... Kh6 {[%clk
0:00:03]} 39. Rxf7 {[%clk 0:00:18.7]} 39... Bxf7 {[%clk 0:00:03.7]} 40. Qf6
{[%clk 0:00:14.8]} 1-0

[Event "Early-Titled-Tuesday-Blitz-February-27-2024"]
[Site "Chess.com"]
[Date "2024.02.27"]
[Round "9"]
[White "GMSrinath"]
[Black "SlavenPastar"]
[Result "1-0"]
[WhiteElo "2809"]
[BlackElo "2631"]
[TimeControl "180+1"]
[EndTime "9:45:12 PST"]
[Termination "GMSrinath won by resignation"]

1. Nf3 {[%clk 0:03:00.9]} 1... Nf6 {[%clk 0:02:58.9]} 2. c4 {[%clk 0:03:00.1]}
2... b6 {[%clk 0:02:59.3]} 3. d4 {[%clk 0:02:59.6]} 3... Bb7 {[%clk 0:02:59.9]}
4. a3 {[%clk 0:02:58.6]} 4... e6 {[%clk 0:02:56.6]} 5. Nc3 {[%clk 0:02:59.1]}
5... d5 {[%clk 0:02:56.2]} 6. Qc2 {[%clk 0:02:58.8]} 6... c5 {[%clk 0:02:46.7]}
7. cxd5 {[%clk 0:02:54.7]} 7... Nxd5 {[%clk 0:02:42.5]} 8. e4 {[%clk 0:02:53.7]}
8... Nxc3 {[%clk 0:02:41.2]} 9. bxc3 {[%clk 0:02:54.6]} 9... Nd7 {[%clk
0:02:41.7]} 10. Bd3 {[%clk 0:02:52.6]} 10... Qc7 {[%clk 0:02:40.2]} 11. O-O
{[%clk 0:02:15.6]} 11... cxd4 {[%clk 0:02:38.8]} 12. cxd4 {[%clk 0:02:16.5]}
12... Qxc2 {[%clk 0:02:38.2]} 13. Bxc2 {[%clk 0:02:17.4]} 13... Rc8 {[%clk
0:02:27.3]} 14. Bd3 {[%clk 0:02:16.5]} 14... Be7 {[%clk 0:02:04.9]} 15. Bd2
{[%clk 0:02:03.7]} 15... O-O {[%clk 0:01:58]} 16. a4 {[%clk 0:02:04.1]} 16...
Rfd8 {[%clk 0:01:31.3]} 17. Bb1 {[%clk 0:01:42.1]} 17... e5 {[%clk 0:01:22.1]}
18. d5 {[%clk 0:01:39]} 18... Nc5 {[%clk 0:01:12.8]} 19. Ra2 {[%clk 0:01:19.5]}
19... f6 {[%clk 0:01:07.1]} 20. a5 {[%clk 0:01:16.7]} 20... Ba6 {[%clk
0:01:04.6]} 21. Re1 {[%clk 0:01:16.4]} 21... Bc4 {[%clk 0:01:04.6]} 22. Rc2
{[%clk 0:01:09.6]} 22... b5 {[%clk 0:01:04.6]} 23. Be3 {[%clk 0:01:04.7]} 23...
a6 {[%clk 0:00:59]} 24. Nd2 {[%clk 0:01:04.9]} 24... Bd3 {[%clk 0:00:43.5]} 25.
Rxc5 {[%clk 0:01:00.4]} 25... Bxc5 {[%clk 0:00:35.5]} 26. Bxd3 {[%clk
0:01:00.2]} 26... Bxe3 {[%clk 0:00:31.6]} 27. fxe3 {[%clk 0:00:45]} 27... Rc3
{[%clk 0:00:30.6]} 28. Bf1 {[%clk 0:00:41.4]} 28... Ra3 {[%clk 0:00:30.6]} 29.
Rc1 {[%clk 0:00:33.9]} 29... Rxa5 {[%clk 0:00:28.5]} 30. Rc7 {[%clk 0:00:34.3]}
30... Ra3 {[%clk 0:00:26.1]} 31. Kf2 {[%clk 0:00:34.7]} 31... b4 {[%clk
0:00:25.6]} 32. Bc4 {[%clk 0:00:32.3]} 32... a5 {[%clk 0:00:24.4]} 33. Nb3
{[%clk 0:00:28.2]} 33... a4 {[%clk 0:00:22.7]} 34. Nc5 {[%clk 0:00:28.9]} 34...
Rc3 {[%clk 0:00:19.4]} 35. Nb7 {[%clk 0:00:25.1]} 35... Rb8 {[%clk 0:00:14.1]}
36. d6+ {[%clk 0:00:25.4]} 36... Rxc4 {[%clk 0:00:13.9]} 37. Rxc4 {[%clk
0:00:24.7]} 37... Rxb7 {[%clk 0:00:13.9]} 38. Rc8+ {[%clk 0:00:25.1]} 38... Kf7
{[%clk 0:00:11.8]} 39. Rc7+ {[%clk 0:00:26]} 39... Ke6 {[%clk 0:00:09.6]} 40.
Rxb7 {[%clk 0:00:25.1]} 40... b3 {[%clk 0:00:09.8]} 41. d7 {[%clk 0:00:20.4]}
41... Ke7 {[%clk 0:00:08.9]} 42. Rb4 {[%clk 0:00:21]} 42... Kxd7 {[%clk
0:00:07.9]} 43. Rxa4 {[%clk 0:00:21.6]} 1-0

[Event "Early-Titled-Tuesday-Blitz-February-27-2024"]
[Site "Chess.com"]
[Date "2024.02.27"]
[Round "9"]
[White "BardArtem"]
[Black "JonSnowNW1"]
[Result "0-1"]
[WhiteElo "2726"]
[BlackElo "2536"]
[TimeControl "180+1"]
[EndTime "9:45:12 PST"]
[Termination "JonSnowNW1 won by resignation"]

1. d4 {[%clk 0:02:51.8]} 1... d5 {[%clk 0:01:23.7]} 2. c4 {[%clk 0:02:49.7]}
2... c6 {[%clk 0:01:23.4]} 3. Bf4 {[%clk 0:02:48.3]} 3... Nf6 {[%clk 0:01:22.2]}
4. e3 {[%clk 0:02:48.4]} 4... e6 {[%clk 0:01:22]} 5. Nc3 {[%clk 0:02:48.3]} 5...
Nbd7 {[%clk 0:01:22.2]} 6. Nf3 {[%clk 0:02:46.6]} 6... Be7 {[%clk 0:01:20.7]} 7.
Ne5 {[%clk 0:02:44.7]} 7... Nxe5 {[%clk 0:01:19.9]} 8. Bxe5 {[%clk 0:02:45.6]}
8... O-O {[%clk 0:01:19.2]} 9. Bd3 {[%clk 0:02:45.5]} 9... Nd7 {[%clk
0:01:18.6]} 10. Bg3 {[%clk 0:02:44.4]} 10... dxc4 {[%clk 0:01:18.4]} 11. Bxc4
{[%clk 0:02:45.3]} 11... b5 {[%clk 0:01:18.8]} 12. Bd3 {[%clk 0:02:45.8]} 12...
a6 {[%clk 0:01:15.2]} 13. O-O {[%clk 0:02:42.7]} 13... c5 {[%clk 0:01:15.5]} 14.
Be4 {[%clk 0:02:37.1]} 14... Ra7 {[%clk 0:01:13.2]} 15. d5 {[%clk 0:02:35.3]}
15... exd5 {[%clk 0:01:08.8]} 16. Nxd5 {[%clk 0:02:35.8]} 16... Nf6 {[%clk
0:01:07.8]} 17. Nxe7+ {[%clk 0:02:35.5]} 17... Rxe7 {[%clk 0:01:06.3]} 18. Bf3
{[%clk 0:02:31.3]} 18... Bf5 {[%clk 0:01:01.9]} 19. Qd6 {[%clk 0:02:25.8]} 19...
Re6 {[%clk 0:00:57.2]} 20. Qxc5 {[%clk 0:02:24]} 20... Be4 {[%clk 0:00:55.7]}
21. Rfd1 {[%clk 0:02:20.4]} 21... Qa8 {[%clk 0:00:55.2]} 22. Bxe4 {[%clk
0:02:18.1]} 22... Nxe4 {[%clk 0:00:56.1]} 23. Qd5 {[%clk 0:02:11.7]} 23... Qc8
{[%clk 0:00:49]} 24. Rac1 {[%clk 0:02:11.1]} 24... Qe8 {[%clk 0:00:48.6]} 25.
Qb7 {[%clk 0:01:57]} 25... h5 {[%clk 0:00:34]} 26. Bf4 {[%clk 0:01:48.2]} 26...
Rg6 {[%clk 0:00:30.1]} 27. f3 {[%clk 0:01:43]} 27... Nf6 {[%clk 0:00:27.7]} 28.
e4 {[%clk 0:01:41.9]} 28... Qe6 {[%clk 0:00:27.3]} 29. Rc6 {[%clk 0:01:33.9]}
29... Qxa2 {[%clk 0:00:20.4]} 30. Be5 {[%clk 0:01:18.6]} 30... Qb3 {[%clk
0:00:19.3]} 31. Rf1 {[%clk 0:00:53.2]} 31... Qe3+ {[%clk 0:00:19]} 32. Kh1
{[%clk 0:00:53.7]} 32... Qe2 {[%clk 0:00:19.1]} 33. Rg1 {[%clk 0:00:54]} 33...
Rxg2 {[%clk 0:00:15.2]} 34. Rxf6 {[%clk 0:00:33.6]} 34... Rxg1+ {[%clk
0:00:07.8]} 35. Kxg1 {[%clk 0:00:34.5]} 35... gxf6 {[%clk 0:00:04.4]} 36. Bg3
{[%clk 0:00:33.7]} 36... Rd8 {[%clk 0:00:03.2]} 37. Be1 {[%clk 0:00:29.4]} 37...
Rd1 {[%clk 0:00:04.1]} 38. Qc8+ {[%clk 0:00:29.6]} 38... Kh7 {[%clk 0:00:03.6]}
39. Qf5+ {[%clk 0:00:29.7]} 39... Kg7 {[%clk 0:00:03.3]} 40. Qg4+ {[%clk
0:00:28]} 40... hxg4 {[%clk 0:00:03.1]} 0-1